fUST/lending_fUST_20240906
["ID","MTS","AMOUNT","RATE_DAILY","PERIOD"]
[337293009,1725586243312,-500.0,0.00020576,2]
[337293011,1725586243322,-500.0,0.00020576,2]
[337293013,1725586243331,-500.0,0.00020576,2]
[337293015,1725586243341,-500.0,0.00020576,2]
[337293017,1725586243351,-500.0,0.00020576,2]
[337293019,1725586243361,-500.0,0.00020576,2]
[337293021,1725586243371,-500.0,0.00020576,2]
[337293023,1725586243380,-500.0,0.00020576,2]
[337293025,1725586243389,-500.0,0.00020576,2]
[337293027,1725586243399,-500.0,0.00020576,2]
[337293029,1725586243409,-500.0,0.00020576,2]
[337293031,1725586243419,-500.0,0.00020576,2]
[337293033,1725586243429,-500.0,0.00020576,2]
[337293035,1725586243439,-500.0,0.00020576,2]
[337293037,1725586243448,-500.0,0.00020576,2]
[337293039,1725586243458,-501.46323168,0.00020576,2]
[337293041,1725586243467,-500.0,0.00020576,2]
[337293043,1725586243477,-500.0,0.00020576,2]
[337293045,1725586243486,-500.0,0.00020576,2]
[337293047,1725586243495,-500.0,0.00020576,2]
[337293049,1725586243505,-500.0,0.00020576,2]
[337293051,1725586243514,-500.0,0.00020576,2]
[337293053,1725586243524,-500.0,0.00020576,2]
[337293055,1725586243534,-500.0,0.00020576,2]
[337293057,1725586243543,-505.01722178,0.00020576,2]
[337293059,1725586243552,-500.0,0.00020576,2]
[337293060,1725586243561,-500.0,0.00020576,2]
[337293063,1725586243572,-500.0,0.00020576,2]
[337293065,1725586243581,-500.0,0.00020576,2]
[337293066,1725586243590,-500.0,0.00020576,2]
[337293068,1725586243600,-550.1751863,0.00020576,2]
[337293070,1725586243609,-500.0,0.00020576,2]
[337293072,1725586243619,-500.0,0.00020576,2]
[337293074,1725586243628,-502.78727735,0.00020576,2]
[337293076,1725586243637,-500.0,0.00020576,2]
[337293078,1725586243646,-500.0,0.00020576,2]
[337293080,1725586243656,-500.0,0.00020576,2]
[337293082,1725586243665,-500.0,0.00020576,2]
[337293084,1725586243675,-500.0,0.00020576,2]
[337293086,1725586243684,-500.0,0.00020576,2]
[337293088,1725586243693,-500.0,0.00020576,2]
[337293090,1725586243703,-500.0,0.00020576,2]
[337293092,1725586243712,-500.0,0.00020576,2]
[337293094,1725586243721,-500.0,0.00020576,2]
[337293096,1725586243730,-500.0,0.00020576,2]
[337293099,1725586243740,-500.0,0.00020576,2]
[337293101,1725586243750,-500.0,0.00020576,2]
[337293102,1725586243759,-555.79142541,0.00020576,2]
[337293104,1725586243769,-500.0,0.00020576,2]
[337293106,1725586243778,-500.0,0.00020576,2]
[337293108,1725586243788,-500.0,0.00020576,2]
[337293110,1725586243797,-500.0,0.00020576,2]
[337293112,1725586243806,-500.0,0.00020576,2]
[337293114,1725586243815,-500.0,0.00020576,2]
[337293116,1725586243824,-500.0,0.00020576,2]
[337293118,1725586243834,-500.0,0.00020576,2]
[337293120,1725586243843,-637.08973062,0.00020576,2]
[337293122,1725586243852,-501.75583908,0.00020576,2]
[337293124,1725586243862,-500.0,0.00020576,2]
[337293126,1725586243871,-500.0,0.00020576,2]
[337293128,1725586243881,-500.0,0.00020576,2]
[337293130,1725586243891,-500.0,0.00020576,2]
[337293132,1725586243900,-504.60690164,0.00020576,2]
[337293134,1725586243909,-504.29211931,0.00020576,2]
[337293137,1725586243919,-500.0,0.00020576,2]
[337293139,1725586243928,-500.0,0.00020576,2]
[337293141,1725586243937,-500.0,0.00020576,2]
[337293143,1725586243946,-500.0,0.00020576,2]
[337293145,1725586243956,-500.0,0.00020576,2]
[337293147,1725586243965,-500.0,0.00020576,2]
[337293149,1725586243975,-500.0,0.00020576,2]
[337293151,1725586243984,-500.0,0.00020576,2]
[337293153,1725586243994,-500.0,0.00020576,2]
[337293155,1725586244003,-500.0,0.00020576,2]
[337293157,1725586244012,-474.58286021,0.00020576,2]
[337293159,1725586244023,-500.0,0.00020576,2]
[337293161,1725586244033,-208.59962698,0.00020576,2]
[337293163,1725586244044,-500.0,0.00020576,2]
[337293165,1725586244054,-500.0,0.00020576,2]
[337293167,1725586244065,-500.0,0.00020576,2]
[337293169,1725586244076,-500.0,0.00020576,2]
[337293172,1725586244087,-500.0,0.00020576,2]
[337293174,1725586244098,-500.0,0.00020576,2]
[337293176,1725586244108,-500.0,0.00020576,2]
[337293178,1725586244117,-500.0,0.00020576,2]
[337293180,1725586244126,-500.0,0.00020576,2]
[337293182,1725586244138,-500.0,0.00020576,2]
[337293183,1725586244147,-501.28594609,0.00020576,2]
[337293185,1725586244157,-500.0,0.00020576,2]
[337293187,1725586244166,-500.0,0.00020576,2]
[337293189,1725586244175,-500.0,0.00020576,2]
[337293191,1725586244184,-626.59,0.00020576,2]
[337293193,1725586244192,-500.0,0.00020576,2]
[337293195,1725586244202,-501.27927522,0.00020576,2]
[337293197,1725586244213,-500.0,0.00020576,2]
[337293199,1725586244222,-500.0,0.00020576,2]
[337293201,1725586244231,-500.0,0.00020576,2]
[337293203,1725586244241,-500.0,0.00020576,2]
[337293205,1725586244250,-366.61949301,0.00020576,2]
[337293207,1725586244259,-580.88111962,0.00020576,2]
[337293209,1725586244268,-500.0,0.00020576,2]
[337293211,1725586244279,-500.0,0.00020576,2]
[337293213,1725586244288,-500.0,0.00020576,2]
[337293215,1725586244297,-209.60500523,0.00020576,2]
[337293217,1725586244308,-509.65713124,0.00020576,2]
[337293219,1725586244318,-500.0,0.00020576,2]
[337293221,1725586244327,-500.0,0.00020576,2]
[337293223,1725586244336,-500.0,0.00020576,2]
[337293225,1725586244348,-502.36183588,0.00020576,2]
[337293227,1725586244358,-500.0,0.00020576,2]
[337293229,1725586244368,-500.0,0.00020576,2]
[337293231,1725586244379,-500.0,0.00020576,2]
[337293233,1725586244390,-500.0,0.00020576,2]
[337293235,1725586244400,-500.0,0.00020576,2]
[337293237,1725586244410,-500.0,0.00020576,2]
[337293239,1725586244419,-500.0,0.00020576,2]
[337293241,1725586244429,-500.5623656,0.00020576,2]
[337293243,1725586244440,-503.70499987,0.00020576,2]
[337293245,1725586244451,-500.0,0.00020576,2]
[337293247,1725586244461,-500.0,0.00020576,2]
[337293249,1725586244472,-500.0,0.00020576,2]
[337293251,1725586244482,-500.0,0.00020576,2]
[337293253,1725586244492,-500.0,0.00020576,2]
[337293255,1725586244501,-500.0,0.00020576,2]
[337293257,1725586244510,-516.50976871,0.00020576,2]
[337293259,1725586244522,-501.40864621,0.00020576,2]
[337293261,1725586244533,-501.32835574,0.00020576,2]
[337293263,1725586244542,-501.00727206,0.00020576,2]
[337293265,1725586244551,-502.35881407,0.00020576,2]
[337293267,1725586244560,-500.0,0.00020576,2]
[337293269,1725586244570,-501.20539999,0.00020576,2]
[337293271,1725586244579,-500.0,0.00020576,2]
[337293273,1725586244588,-433.18319156,0.00020576,2]
[337293275,1725586244597,-500.0,0.00020576,2]
[337293277,1725586244606,-500.0,0.00020576,2]
[337293279,1725586244616,-500.0,0.00020576,2]
[337293281,1725586244626,-500.0,0.00020576,2]
[337293284,1725586244636,-500.0,0.00020576,2]
[337293285,1725586244645,-500.0,0.00020576,2]
[337293287,1725586244655,-500.0,0.00020576,2]
[337293290,1725586244664,-500.0,0.00020576,2]
[337293292,1725586244674,-500.0,0.00020576,2]
[337293293,1725586244683,-505.8867738,0.00020576,2]
[337293296,1725586244693,-500.0,0.00020576,2]
[337293298,1725586244702,-502.77684791,0.00020576,2]
[337293300,1725586244711,-500.0,0.00020576,2]
[337293302,1725586244721,-506.14134464,0.00020576,2]
[337293304,1725586244730,-505.56422902,0.00020576,2]
[337293306,1725586244739,-501.27517552,0.00020576,2]
[337293307,1725586244748,-506.00465791,0.00020576,2]
[337293309,1725586244758,-504.73986271,0.00020576,2]
[337293311,1725586244768,-503.87442266,0.00020576,2]
[337293314,1725586244780,-500.0,0.00020576,2]
[337293316,1725586244789,-501.21090367,0.00020576,2]
[337293318,1725586244799,-500.0,0.00020576,2]
[337293320,1725586244807,-503.3118906,0.00020576,2]
[337293322,1725586244817,-546.95134104,0.00020576,2]
[337293324,1725586244826,-507.36732931,0.00020576,2]
[337293326,1725586244836,-500.38694864,0.00020576,2]
[337293328,1725586244845,-507.48538146,0.00020576,2]
[337293330,1725586244854,-501.51821073,0.00020576,2]
[337293332,1725586244864,-500.0,0.00020585,2]
[337293334,1725586244873,-500.0,0.00020585,2]
[337293336,1725586244883,-500.0,0.00020585,2]
[337293338,1725586244892,-151.0,0.00020586,2]
[337293340,1725586244901,-151.0,0.00020586,2]
[337293342,1725586244910,-151.0,0.00020586,2]
[337293344,1725586244919,-151.0,0.00020586,2]
[337293346,1725586244928,-151.0,0.00020586,2]
[337293347,1725586244938,-151.0,0.00020586,2]
[337293349,1725586244947,-151.0,0.00020586,2]
[337293351,1725586244956,-657.475231,0.00020586,2]
[337293353,1725586244965,-657.475231,0.00020586,2]
[337293355,1725586244975,-151.0,0.00020586,2]
[337293357,1725586244984,-151.0,0.00020586,2]
[337293359,1725586244994,-151.0,0.00020586,2]
[337293361,1725586245003,-154.425653,0.00020586,2]
[337293363,1725586245012,-154.425653,0.00020586,2]
[337293365,1725586245023,-589.07,0.00020595,2]
[337293367,1725586245033,-589.07,0.00020595,2]
[337293369,1725586245042,-500.0,0.00020595,2]
[337293371,1725586245051,-500.0,0.00020595,2]
[337293373,1725586245060,-500.0,0.00020595,2]
[337293375,1725586245069,-500.0,0.00020595,2]
[337293377,1725586245079,-500.0,0.00020595,2]
[337293379,1725586245089,-500.0,0.00020595,2]
[337293381,1725586245099,-500.0,0.00020595,2]
[337293383,1725586245108,-500.0,0.00020595,2]
[337293385,1725586245117,-500.0,0.00020595,2]
[337293387,1725586245127,-500.0,0.00020596,2]
[337293389,1725586245141,-500.0,0.00020596,2]
[337293391,1725586245150,-500.0,0.00020596,2]
[337293393,1725586245159,-500.0,0.00020596,2]
[337293395,1725586245168,-500.0,0.00020596,2]
[337293397,1725586245178,-500.0,0.00020597,2]
[337293399,1725586245188,-150.112235,0.000206,4]
[337293401,1725586245197,-150.112233,0.000206,3]
[337293403,1725586245207,-1000.0,0.000206,2]
[337293405,1725586245218,-500.0,0.00020635,2]
[337293407,1725586245227,-2842.10267189,0.00020636,2]
[337293410,1725586245237,-150.112233,0.000207,4]
[337293412,1725586245246,-150.112233,0.000207,3]
[337293414,1725586245255,-150.112233,0.000207,3]
[337293416,1725586245264,-500.0,0.0002076,2]
[337293418,1725586245276,-500.0,0.0002076,2]
[337293420,1725586245285,-500.0,0.0002076,2]
[337293422,1725586245294,-500.0,0.0002076,2]
[337293424,1725586245304,-400.98450915,0.0002076,2]
[337293426,1725586245314,-256.71760389,0.00020784,2]
[337293428,1725586245324,-500.0,0.00020784,2]
[337293430,1725586245333,-500.0,0.00020784,2]
[337293432,1725586245342,-500.0,0.00020784,2]
[337293434,1725586245351,-500.0,0.00020784,2]
[337293436,1725586245361,-280.2393039,0.00020784,2]
[337293438,1725586245370,-500.0,0.00020784,2]
[337293440,1725586245379,-404.69478867,0.00020784,2]
[337293442,1725586245388,-16750.80501298,0.00020785,2]
[337293444,1725586245398,-19235.2359725,0.00020795,2]
[337293446,1725586245407,-153.0,0.000208,2]
[337293448,1725586245417,-150.112233,0.000208,2]
[337293450,1725586245426,-150.112233,0.000208,4]
[337293452,1725586245435,-3174.17,0.00020804,2]
[337293454,1725586245445,-500.0,0.00020804,2]
[337293456,1725586245454,-168.49,0.00020804,2]
[337293458,1725586245463,-500.0,0.00020804,2]
[337293460,1725586245473,-826.34,0.00020804,2]
[337293462,1725586245482,-500.0,0.00020804,2]
[337293464,1725586245491,-3200.46,0.00020804,2]
[337293466,1725586245501,-500.0,0.00020805,2]
[337293468,1725586245510,-500.0,0.00020805,2]
[337293470,1725586245519,-224.73353467,0.00020805,2]
[337293472,1725586245541,-500.0,0.00020805,2]
[337293474,1725586245550,-589.07,0.00020805,2]
[337293476,1725586245559,-589.07,0.00020805,2]
[337293478,1725586245569,-500.0,0.00020805,2]
[337293480,1725586245578,-500.0,0.00020805,2]
[337293482,1725586245587,-151.199325,0.00020805,2]
[337293484,1725586245597,-151.0,0.00020805,2]
[337293486,1725586245606,-151.0,0.00020805,2]
[337293488,1725586245615,-500.0,0.00020805,2]
[337293490,1725586245625,-500.0,0.00020805,2]
[337293492,1725586245635,-500.0,0.00020805,2]
[337293494,1725586245644,-500.0,0.00020805,2]
[337293496,1725586245654,-500.0,0.00020805,2]
[337293498,1725586245663,-286.298304,0.00020805,2]
[337293500,1725586245673,-500.0,0.00020805,2]
[337293502,1725586245683,-211.422516,0.00020805,2]
[337293504,1725586245693,-217.227006,0.00020805,2]
[337293506,1725586245703,-151.0,0.00020805,2]
[337293508,1725586245713,-500.0,0.00020805,2]
[337293510,1725586245722,-500.0,0.00020805,2]
[337293512,1725586245732,-657.475231,0.00020805,2]
[337293514,1725586245741,-657.475231,0.00020805,2]
[337293516,1725586245750,-500.0,0.00020805,2]
[337293518,1725586245760,-151.0,0.00020805,2]
[337293520,1725586245769,-500.0,0.00020805,2]
[337293522,1725586245785,-154.425653,0.00020805,2]
[337293524,1725586245795,-154.425653,0.00020805,2]
[337293526,1725586245804,-288.73,0.00020805,2]
[337293528,1725586245814,-951.36,0.00020805,2]
[337293530,1725586245824,-41692.49,0.00020805,2]
[337293532,1725586245833,-500.0,0.00020805,2]
[337293534,1725586245843,-500.0,0.00020805,2]
[337293537,1725586245853,-151.0,0.00020805,2]
[337293538,1725586245862,-500.0,0.00020805,2]
[337293552,1725586245978,-500.0,0.00020806,2]
[337293554,1725586245988,-585.5,0.00020806,2]
[337293556,1725586245998,-500.0,0.00020806,2]
[337293558,1725586246008,-621.16,0.00020806,2]
[337293560,1725586246019,-209.56,0.00020806,2]
[337293562,1725586246036,-163.8,0.00020806,2]
[337293564,1725586246045,-500.0,0.00020806,2]
[337293566,1725586246055,-233.83500877,0.00020806,2]
[337293568,1725586246064,-151.0,0.00020806,2]
[337293570,1725586246074,-151.0,0.00020806,2]
[337293572,1725586246083,-151.0,0.00020815,2]
[337293574,1725586246093,-151.0,0.00020815,2]
[337293576,1725586246104,-500.0,0.0002085,2]
[337293579,1725586246114,-532.28899607,0.0002085,2]
[337293581,1725586246123,-500.0,0.0002085,2]
[337293583,1725586246133,-504.33938074,0.0002085,2]
[337293584,1725586246145,-500.0,0.0002085,2]
[337293586,1725586246154,-213.91871722,0.0002085,2]
[337293588,1725586246164,-500.0,0.0002085,2]
[337293590,1725586246174,-500.0,0.0002085,2]
[337293592,1725586246183,-500.0,0.0002085,2]
[337293594,1725586246192,-360.69950965,0.0002085,2]
[337293596,1725586246202,-500.98091927,0.0002085,2]
[337293598,1725586246212,-500.0,0.0002085,2]
[337293600,1725586246222,-331.62518855,0.0002085,2]
[337293602,1725586246232,-512.88074212,0.0002085,2]
[337293604,1725586246243,-500.0,0.0002085,2]
[337293606,1725586246252,-479.31305584,0.0002085,2]
[337293608,1725586246262,-500.0,0.0002085,2]
[337293611,1725586246273,-500.0,0.0002085,2]
[337293613,1725586246283,-500.0,0.0002085,2]
[337293615,1725586246292,-500.0,0.0002085,2]
[337293617,1725586246301,-294.4370535,0.0002085,2]
[337293619,1725586246311,-500.0,0.0002085,2]
[337293621,1725586246320,-500.0,0.0002085,2]
[337293623,1725586246329,-500.0,0.0002085,2]
[337293625,1725586246338,-564.67032953,0.0002085,2]
[337293627,1725586246347,-502.25200532,0.0002085,2]
[337293628,1725586246356,-244.35682313,0.0002085,2]
[337293630,1725586246366,-617.46,0.0002085,2]
[337293633,1725586246375,-500.0,0.0002085,2]
[337293635,1725586246384,-500.0,0.0002085,2]
[337293637,1725586246393,-296.87834876,0.0002085,2]
[337293639,1725586246402,-353.47738677,0.0002085,2]
[337293641,1725586246411,-500.0,0.0002085,2]
[337293643,1725586246421,-198.07562049,0.0002085,2]
[337293645,1725586246430,-500.0,0.0002085,2]
[337293647,1725586246440,-462.12775693,0.0002085,2]
[337293648,1725586246450,-500.0,0.0002085,2]
[337293649,1725586246459,-500.0,0.0002085,2]
[337293650,1725586246468,-500.0,0.0002085,2]
[337293651,1725586246478,-500.0,0.0002085,2]
[337293652,1725586246488,-500.0,0.0002085,2]
[337293653,1725586246498,-500.0,0.0002085,2]
[337293655,1725586246507,-500.0,0.0002085,2]
[337293657,1725586246516,-500.0,0.0002085,2]
[337293659,1725586246529,-509.75007426,0.0002085,2]
[337293662,1725586246539,-500.0,0.0002085,2]
[337293664,1725586246549,-500.0,0.0002085,2]
[337293666,1725586246559,-500.0,0.0002085,2]
[337293668,1725586246568,-500.0,0.0002085,2]
[337293670,1725586246579,-500.0,0.0002085,2]
[337293672,1725586246588,-506.5913765,0.0002085,2]
[337293674,1725586246597,-500.0,0.0002085,2]
[337293676,1725586246607,-500.0,0.0002085,2]
[337293678,1725586246616,-500.0,0.0002085,2]
[337293680,1725586246625,-326.16390654,0.0002085,2]
[337293682,1725586246634,-158.93889665,0.0002085,2]
[337293684,1725586246643,-500.0,0.0002085,2]
[337293686,1725586246653,-500.0,0.0002085,2]
[337293688,1725586246662,-227.60252784,0.0002085,2]
[337293690,1725586246671,-292.85880437,0.0002085,2]
[337293692,1725586246681,-313.1,0.0002085,2]
[337293694,1725586246693,-193.88,0.0002085,2]
[337293696,1725586246703,-500.0,0.0002085,2]
[337293698,1725586246713,-500.0,0.0002085,2]
[337293700,1725586246722,-279.88212374,0.0002085,2]
[337293703,1725586246733,-500.0,0.0002085,2]
[337293705,1725586246743,-151.0,0.0002086,2]
[337293707,1725586246753,-151.0,0.0002086,2]
[337293709,1725586246763,-500.0,0.0002087,2]
[337293711,1725586246776,-500.0,0.0002087,2]
[337293713,1725586246787,-500.0,0.0002087,2]
[337293715,1725586246798,-462.93549657,0.0002087,2]
[337293717,1725586246808,-500.0,0.0002087,2]
[337293720,1725586246821,-370.12591483,0.0002087,2]
[337293722,1725586246832,-500.0,0.00020873,2]
[337293724,1725586246843,-500.0,0.00020873,2]
[337293726,1725586246853,-500.0,0.00020873,2]
[337293728,1725586246862,-500.0,0.00020873,2]
[337293730,1725586246872,-500.0,0.00020873,2]
[337293732,1725586246881,-55555.0,0.00020979,3]
[337293734,1725586246890,-151.0,0.00020979,2]
[337293736,1725586246900,-184.708913,0.00020979,2]
[337293739,1725586246909,-154.309259,0.00020979,2]
[337293741,1725586246918,-657.475231,0.00020979,2]
[337293743,1725586246927,-657.475231,0.00020979,2]
[337293745,1725586246937,-151.0,0.00020979,2]
[337293747,1725586246947,-154.425653,0.00020979,2]
[337293750,1725586246956,-154.425653,0.00020979,2]
[337293753,1725586246966,-589.07,0.00020986,2]
[337293756,1725586246975,-500.0,0.00020986,2]
[337293758,1725586246984,-435.24410628,0.00020986,2]
[337293770,1725586247090,-64.75589372,0.00020986,2]
[337293772,1725586247100,-500.0,0.00020986,2]
[337293774,1725586247110,-500.0,0.00020986,2]
[337293776,1725586247119,-248.787894,0.00020986,2]
[337293778,1725586247129,-683.376452,0.00021045,2]
[337293780,1725586247144,-3.06650128,0.00021078,2]
[337293783,1725586247161,-504.95532355,0.00020576,2]
[337293785,1725586247170,-3171.10349872,0.00021078,2]
[337293787,1725586247181,-173.11,0.00021078,2]
[337293789,1725586247191,-500.0,0.00021078,2]
[337293791,1725586247200,-826.34,0.00021078,2]
[337293793,1725586247209,-500.0,0.00021078,2]
[337293795,1725586247220,-3200.46,0.00021078,2]
[337293797,1725586247230,-500.0,0.00021079,2]
[337293799,1725586247240,-500.0,0.00021079,2]
[337293801,1725586247250,-500.0,0.00021079,2]
[337293803,1725586247260,-589.07,0.00021079,2]
[337293805,1725586247269,-500.0,0.00021079,2]
[337293807,1725586247288,-443.93,0.00021079,2]
[337293809,1725586247297,-500.0,0.00021079,2]
[337293811,1725586247308,-500.0,0.00021079,2]
[337293813,1725586247318,-500.0,0.00021079,2]
[337293815,1725586247327,-500.0,0.00021079,2]
[337293817,1725586247337,-500.0,0.00021079,2]
[337293819,1725586247347,-421.62,0.00021079,2]
[337293821,1725586247356,-951.36,0.00021079,2]
[337293823,1725586247366,-8514.76728173,0.00021079,2]
[337293835,1725586247470,-565.33718357,0.00021079,2]
[337293837,1725586247483,-272.29741433,0.00021079,2]
[337293839,1725586247494,-27581.68128776,0.00021079,2]
[337293841,1725586247506,-2782.7239011,0.00021079,2]
[337293844,1725586247518,-1975.68293151,0.00021079,2]
[337293846,1725586247530,-500.0,0.00021079,2]
[337293848,1725586247539,-151.0,0.00021079,2]
[337293849,1725586247548,-500.0,0.00021079,2]
[337293851,1725586247558,-209.63,0.0002108,2]
[337293854,1725586247568,-585.5,0.0002108,2]
[337293855,1725586247578,-500.0,0.0002108,2]
[337293857,1725586247588,-308.15725267,0.0002108,2]
[337293859,1725586247598,-3000.0,0.000211,2]
[337293861,1725586247608,-18171.1440927,0.000211,2]
[337293864,1725586247620,-21370.28676841,0.000211,2]
[337293866,1725586247630,-1000.0,0.000211,2]
[337293868,1725586247639,-3000.0,0.0002111,2]
[337293870,1725586247649,-3000.0,0.0002112,2]
[337293872,1725586247659,-500.0,0.00021124,2]
[337293874,1725586247670,-500.0,0.00021124,2]
[337293876,1725586247679,-500.0,0.00021124,2]
[337293878,1725586247689,-500.0,0.00021124,2]
[337293880,1725586247700,-500.0,0.00021124,2]
[337293882,1725586247710,-525.02649668,0.00021124,2]
[337293884,1725586247720,-500.0,0.00021124,2]
[337293886,1725586247730,-500.0,0.00021124,2]
[337293888,1725586247739,-500.0,0.00021124,2]
[337293890,1725586247749,-500.0,0.00021124,2]
[337293892,1725586247759,-3000.0,0.0002113,2]
[337293894,1725586247768,-163.37524068,0.00021139,2]
[337293896,1725586247781,-3000.0,0.0002114,2]
[337293898,1725586247790,-589.07,0.00021143,2]
[337293900,1725586247799,-500.0,0.00021143,2]
[337293901,1725586247808,-530.4169717,0.00021143,2]
[337293903,1725586247817,-518.66194095,0.00021143,2]
[337293905,1725586247827,-500.0,0.00021143,2]
[337293908,1725586247837,-151.0,0.00021143,2]
[337293910,1725586247846,-500.0,0.00021144,2]
[337293912,1725586247856,-500.0,0.00021144,2]
[337293913,1725586247866,-3000.0,0.0002115,2]
[337293916,1725586247876,-3000.0,0.0002116,2]
[337293918,1725586247886,-5107.957169,0.0002117,2]
[337293920,1725586247895,-150.01,0.00021183,2]
[337293922,1725586247905,-240.35383755,0.00021183,2]
[337293924,1725586247915,-925.43,0.000212,2]
[337293926,1725586247925,-270.476165,0.000213,4]
[337293928,1725586247934,-3174.17,0.00021352,2]
[337293930,1725586247945,-500.0,0.00021352,2]
[337293932,1725586247955,-826.34,0.00021352,2]
[337293934,1725586247965,-500.0,0.00021352,2]
[337293936,1725586247975,-3200.46,0.00021352,2]
[337293938,1725586247985,-500.0,0.00021353,2]
[337293940,1725586247994,-500.0,0.00021353,2]
[337293942,1725586248004,-500.0,0.00021353,2]
[337293944,1725586248015,-589.07,0.00021353,2]
[337293946,1725586248029,-500.0,0.00021353,2]
[337293948,1725586248040,-151.0,0.00021353,2]
[337293950,1725586248049,-151.0,0.00021353,2]
[337293952,1725586248059,-500.0,0.00021353,2]
[337293955,1725586248070,-500.0,0.00021353,2]
[337293957,1725586248080,-657.475231,0.00021353,2]
[337293959,1725586248091,-657.475231,0.00021353,2]
[337293961,1725586248100,-500.0,0.00021353,2]
[337293963,1725586248110,-151.0,0.00021353,2]
[337293965,1725586248119,-154.425653,0.00021353,2]
[337293967,1725586248128,-154.425653,0.00021353,2]
[337293969,1725586248144,-951.36,0.00021353,2]
[337293971,1725586248154,-41692.49,0.00021353,2]
[337293973,1725586248164,-500.0,0.00021353,2]
[337293975,1725586248175,-500.0,0.00021353,2]
[337293977,1725586248186,-585.5,0.00021354,2]
[337293979,1725586248196,-500.0,0.00021354,2]
[337293981,1725586248206,-240.503977,0.00021354,2]
[337293983,1725586248217,-500.95369939,0.00021357,2]
[337293985,1725586248227,-589.07,0.00021359,2]
[337293988,1725586248237,-500.0,0.00021359,2]
[337293990,1725586248247,-500.0,0.00021359,2]
[337293992,1725586248257,-31369.76998179,0.0002136,2]
[337293994,1725586248266,-151.0,0.0002136,2]
[337293996,1725586248277,-500.0,0.00021398,2]
[337293998,1725586248287,-500.0,0.00021398,2]
[337294000,1725586248297,-500.0,0.00021398,2]
[337294002,1725586248306,-500.0,0.00021398,2]
[337294004,1725586248316,-500.0,0.00021398,2]
[337294006,1725586248326,-513.12490186,0.00021398,2]
[337294008,1725586248335,-500.0,0.00021398,2]
[337294010,1725586248344,-500.0,0.00021398,2]
[337294012,1725586248354,-151.0,0.00021398,2]
[337294014,1725586248364,-169.65853711,0.00021398,2]
[337294016,1725586248374,-500.0,0.00021418,2]
[337294018,1725586248384,-500.0,0.00021418,2]
[337294020,1725586248393,-744.06064683,0.00021421,2]
[337294022,1725586248403,-154.58861296,0.00021421,2]
[337294024,1725586248413,-3174.17,0.00021626,2]
[337294026,1725586248423,-500.0,0.00021626,2]
[337294028,1725586248432,-826.34,0.00021626,2]
[337294030,1725586248442,-500.0,0.00021626,2]
[337294032,1725586248452,-3200.46,0.00021626,2]
[337294034,1725586248462,-500.0,0.00021627,2]
[337294036,1725586248471,-500.0,0.00021627,2]
[337294038,1725586248482,-500.0,0.00021627,2]
[337294040,1725586248491,-589.07,0.00021627,2]
[337294042,1725586248501,-500.0,0.00021627,2]
[337294044,1725586248510,-151.0,0.00021627,2]
[337294046,1725586248520,-500.0,0.00021627,2]